fUSD/lending_fUSD_20260103
["ID","MTS","AMOUNT","RATE_DAILY","PERIOD"]
[400352894,1767418149655,-195.0,0.00018,2]
[400352895,1767418149679,-113.91344266,0.00018,2]
[400352896,1767418160383,-136.08655734,0.00018,2]
[400352901,1767418201210,300.0,0.00017999,2]
[400352902,1767418201243,300.0,0.00017999,2]
[400352903,1767418201275,1200.0,0.00017999,2]
[400352904,1767418202279,550.0,0.00017999,2]
[400352905,1767418215972,601.87233082,0.000179,2]
[400352916,1767418231733,-1010.2,0.00018,2]
[400352919,1767418231746,-194052.84837602,0.00018,2]
[400352920,1767418231758,-2275.12950864,0.00018,2]
[400352921,1767418231787,-54155.79153275,0.00018,2]
[400352922,1767418231845,-709.0,0.00018,2]
[400352923,1767418231861,-938.58626969,0.00018,2]
[400352924,1767418231910,-5307.82097488,0.00018,2]
[400352925,1767418231962,-312.0,0.00018,2]
[400352941,1767418237757,405.47,0.00013699,2]
[400352942,1767418237801,-2591.08239404,0.00018,2]
[400352943,1767418237813,-2347.35269644,0.00018,2]
[400352944,1767418237858,-1199.44426882,0.00018,2]
[400352945,1767418237870,-1364.2629872,0.00018,2]
[400352946,1767418237882,-12199.61043626,0.00018,2]
[400352947,1767418237916,-1075.71431436,0.00018,2]
[400352948,1767418237972,-18015.99999999,0.00018,2]
[400352949,1767418237984,-12544.9441137,0.00018,2]
[400352950,1767418237996,-4632.13382587,0.00018,2]
[400352962,1767418239928,-2388883.57616217,0.00018,2]
[400352963,1767418239938,-1533207.72042041,0.00018,2]
[400352964,1767418239947,-1187.36086838,0.00018,2]
[400352965,1767418239957,-304.0,0.00018,2]
[400352966,1767418239967,-300.0,0.00018004,2]
[400352967,1767418239977,-150.25492495,0.00018008,2]
[400352968,1767418239993,-372.4482038,0.00018045,2]
[400352969,1767418240009,-300.0,0.00018054,2]
[400352970,1767418240019,-300.0,0.00018108,2]
[400352971,1767418240029,-46400.227576,0.00018109,2]
[400352972,1767418240044,-151.41,0.000188,2]
[400352973,1767418240054,-151.41,0.000188,2]
[400352974,1767418240064,-151.41,0.000188,2]
[400352975,1767418240074,-151.41,0.000188,2]
[400352976,1767418240084,-151.41,0.000188,2]
[400352977,1767418240094,-5156.34884816,0.00019,2]
[400352978,1767418240103,-5305.3961195,0.00019046,2]
[400352979,1767418240112,-935.0,0.00019079,2]
[400352980,1767418240122,-249.12163361,0.00019082,2]
[400352981,1767418240132,-200.3854381,0.00019082,2]
[400352982,1767418240142,-10353.2902099,0.00019182,2]
[400352983,1767418240152,-1183.7938858,0.00019279,2]
[400352984,1767418240162,-2310.1313026,0.00019421,2]
[400352985,1767418240172,-1680.0,0.00019639,2]
[400352986,1767418240183,-420.0,0.00019639,2]
[400352987,1767418240192,-420.0,0.00019639,2]
[400352988,1767418240203,-1680.0,0.00019735,2]
[400352989,1767418240213,-302.30336272,0.00019799,2]
[400352990,1767418240223,-153.01346524,0.00019799,2]
[400352991,1767418240232,-195.0,0.00019799,2]
[400352992,1767418240243,-1846.50872486,0.00019799,2]
[400352993,1767418240256,-250.0,0.00019799,2]
[400352994,1767418240266,-1713.51196132,0.000198,2]
[400352995,1767418240276,-253.13442126,0.000198,2]
[400352996,1767418240287,-300.0,0.000198,2]
[400352997,1767418240297,-193.0,0.000198,2]
[400352998,1767418240307,-226072.8215172,0.0002,5]
[400352999,1767418240319,-2926.62400851,0.0002,7]
[400353000,1767418240329,-527.28753623,0.0002,7]
[400353001,1767418240339,-1042.76190458,0.0002,2]
[400353002,1767418240349,-2857.59680919,0.0002,2]
[400353003,1767418240359,-1000.0,0.0002,7]
[400353004,1767418240369,-150.0,0.0002,2]
[400353005,1767418240379,-150.0,0.0002,2]
[400353006,1767418240389,-194.88226569,0.0002,2]
[400353007,1767418240400,-405.47,0.00020187,2]
[400353008,1767418240414,-1156.0,0.00020231,2]
[400353009,1767418240424,-281.74,0.00020549,2]
[400353010,1767418240434,-18509.17897076,0.00020672,2]
[400353011,1767418240444,-150.25492488,0.0002076,2]
[400353012,1767418240454,-1190.6729503,0.00021,2]
[400353013,1767418240464,-196.53047056,0.00021,2]
[400353014,1767418240474,-1988.0,0.00021428,2]
[400353015,1767418240484,-253.0,0.00021428,2]
[400353016,1767418240494,-587.0,0.00021428,2]
[400353017,1767418240504,-221.67320401,0.000215,2]
[400353018,1767418240514,-2351.0,0.00021639,2]
[400353019,1767418240523,-2177.68100228,0.0002174,2]
[400353020,1767418240533,-281.74,0.00021919,2]
[400353021,1767418240543,-249.12163361,0.00021999,2]
[400353022,1767418240553,-249.12163361,0.00022,2]
[400353023,1767418240563,-9570.85,0.00022,7]
[400353024,1767418240573,-163.53,0.00022,2]
[400353025,1767418240585,-166.24,0.00022562,2]
[400353026,1767418240595,-522.09269812,0.0002271,2]
[400353027,1767418240607,-502.0,0.00022932,2]
[400353028,1767418240616,-2082.55198238,0.00023,2]
[400353029,1767418240626,-1005.68576268,0.00023,2]
[400353030,1767418240636,-167.45753772,0.000232,2]
[400353031,1767418240646,-823.0,0.00023381,2]
[400353032,1767418240656,-18509.17897076,0.00023435,2]
[400353033,1767418240666,-200.0,0.000235,2]
[400353034,1767418240676,-150.25492488,0.00023513,2]
[400353035,1767418240686,-3292.0,0.00023727,2]
[400353036,1767418240696,-797.17006016,0.00024,7]
[400353037,1767418240706,-151.41,0.000242,2]
[400353038,1767418240716,-421.00975109,0.0002421,2]
[400353039,1767418240726,-3687.98537465,0.0002421,2]
[400353040,1767418240735,-300.44625038,0.000245,2]
[400353041,1767418240746,-300.0,0.00024578,2]
[400353042,1767418240756,-300.0,0.0002473,2]
[400353043,1767418240765,-25436.7434463,0.00024766,2]
[400353044,1767418240775,-153.065186,0.00024766,7]
[400353045,1767418240785,-151.0,0.00024766,7]
[400353046,1767418240796,-151.510635,0.00024766,7]
[400353047,1767418240807,-187.585869,0.00024766,7]
[400353048,1767418240817,-187.585869,0.00024766,7]
[400353049,1767418240827,-187.585869,0.00024766,7]
[400353050,1767418240837,-187.585869,0.00024766,7]
[400353051,1767418240847,-529608.008428,0.000248,3]
[400353052,1767418240857,-151.0,0.000248,7]
[400353053,1767418240867,-187.585869,0.000248,7]
[400353054,1767418240876,-187.585869,0.000248,7]
[400353055,1767418240886,-187.585869,0.000248,7]
[400353056,1767418240895,-187.585869,0.000248,7]
[400353057,1767418240905,-151.0,0.000248,7]
[400353058,1767418240915,-300.0,0.00024834,2]
[400353059,1767418240925,-151.41,0.0002489,2]
[400353060,1767418240935,-262.26053553,0.000249,2]
[400353061,1767418240945,-308576.477848,0.000249,3]
[400353062,1767418240954,-6317.67340715,0.00024955,2]
[400353063,1767418240965,-206.67572203,0.00025,2]
[400353064,1767418240974,-1777.56532462,0.00025,2]
[400353065,1767418240994,-19005.7992196,0.00025,2]
[400353066,1767418241007,-372.5920444,0.00025,2]
[400353067,1767418241017,-360.0,0.00025,2]
[400353068,1767418241027,-608.45906824,0.00025,2]
[400353069,1767418241037,-3032.00743551,0.00025,2]
[400353070,1767418241046,-151.0,0.00025,7]
[400353071,1767418241058,-1060.17402713,0.00025,2]
[400353072,1767418241067,-166.6271654,0.00025,2]
[400353073,1767418241077,-1342.42013878,0.00025,2]
[400353074,1767418241087,-416.32444855,0.00025,3]
[400353075,1767418241097,-161.87,0.00025018,2]
[400353076,1767418241107,-441.42379,0.0002532,2]
[400353077,1767418241117,-441.42379,0.0002532,2]
[400353078,1767418241127,-441.42378,0.0002532,2]
[400353079,1767418241138,-441.42378,0.0002532,2]
[400353080,1767418241148,-441.42378,0.0002532,2]
[400353081,1767418241158,-441.42378,0.0002532,2]
[400353082,1767418241168,-441.42378,0.0002532,2]
[400353083,1767418241178,-441.42378,0.0002532,2]
[400353084,1767418241188,-441.42378,0.0002532,2]
[400353085,1767418241198,-441.42378,0.0002532,2]
[400353086,1767418241208,-1152.0,0.00025511,2]
[400353087,1767418241218,-800.98583006,0.00025894,2]
[400353088,1767418241228,-215.67101196,0.00026,2]
[400353089,1767418241239,-2052.60090868,0.00026,2]
[400353090,1767418241252,-162.33910438,0.00026,2]
[400353091,1767418241262,-4609.0,0.00026016,2]
[400353092,1767418241272,-18509.17897076,0.00026199,2]
[400353093,1767418241282,-150.25492488,0.00026265,2]
[400353094,1767418241293,-405.47,0.00026676,2]
[400353095,1767418241303,-588.26,0.00026709,2]
[400353096,1767418241314,-22175.19,0.00026748,2]
[400353097,1767418241326,-150.26122987,0.0002678,2]
[400353098,1767418241337,-210.20416775,0.00026849,2]
[400353099,1767418241347,-500.0,0.00026849,2]
[400353100,1767418241361,-150.0,0.00026849,2]
[400353101,1767418241371,-167.43181631,0.00026849,2]
[400353102,1767418241382,-150.0,0.00026849,2]
[400353103,1767418241393,-1000.0,0.00026935,2]
[400353104,1767418241404,-3551.67692018,0.00026936,2]
[400353105,1767418241413,-999.0,0.00026985,3]
[400353106,1767418241424,-500.0,0.00026986,2]
[400353107,1767418241434,-257.40464583,0.00026986,2]
[400353108,1767418241444,-259.86544597,0.00026986,2]
[400353109,1767418241454,-9570.85,0.00027,7]
[400353110,1767418241720,-153.469765,0.00027,7]
[400353111,1767418241732,-187.585869,0.00027,7]
[400353112,1767418241743,-187.585869,0.00027,7]
[400353113,1767418241753,-187.585869,0.00027,7]
[400353114,1767418241762,-187.585869,0.00027,7]
[400353115,1767418241772,-151.0,0.00027,7]
[400353116,1767418241782,-8622.97463462,0.00027055,2]
[400353117,1767418242073,-1.7e-07,0.00027055,2]
[400353118,1767418242095,-348.0945691,0.00027055,2]
[400353122,1767418243601,-16.83527256,0.00026986,2]
[400353123,1767418243756,-245.42526297,0.00026986,2]
[400353124,1767418243766,-68.83638499,0.00027055,2]
[400353125,1767418243778,-380.05252024,0.00027055,2]
[400353137,1767418245828,-1876.8110829,0.00027055,2]
[400353180,1767418533998,1000.0,0.00032877,120]
[400353187,1767418633337,500.0,0.00017999,2]
[400353188,1767418633584,500.0,0.00017999,2]
[400353189,1767418633817,500.0,0.00017999,2]
[400353190,1767418634050,508.04103286,0.00017999,2]
[400353197,1767418805314,4168.32941159,0.00016,2]
[400353273,1767419270121,194.12411005,0.00013286,2]
[400353274,1767419270147,717.45588995,0.00013286,2]
[400353275,1767419270334,911.58,0.00013986,2]
[400353276,1767419270525,911.58,0.00014685,2]
[400353277,1767419270723,911.58,0.00015384,2]
[400353278,1767419270928,911.58,0.00016084,2]
[400353280,1767419271133,911.58,0.00016783,2]
[400353281,1767419271319,911.58,0.00017482,2]
[400353289,1767419355676,250.0,0.00017,2]
[400353296,1767419431907,-305.0,0.00018181,2]
[400353297,1767419431918,-911.58,0.00018181,2]
[400353298,1767419431928,-250.0,0.00018531,2]
[400353299,1767419431949,-911.58,0.00018881,2]
[400353300,1767419431961,-911.58,0.0001958,2]
[400353301,1767419431971,-250.0,0.0002,2]
[400353302,1767419431981,-150.16584728,0.0002,20]
[400353303,1767419431991,-911.58,0.00020279,2]
[400353304,1767419432001,-911.58,0.00020979,2]
[400353305,1767419432011,-911.58,0.00021678,2]
[400353306,1767419432021,-161.23,0.00021796,2]
[400353307,1767419432032,-1200.0,0.00021915,2]
[400353308,1767419432042,-300.0,0.00021916,2]
[400353309,1767419432052,-1222.54,0.00021917,2]
[400353310,1767419432062,-250.0,0.00022155,2]
[400353311,1767419432072,-1222.54,0.00022191,2]
[400353312,1767419432083,-200.0,0.00022366,2]
[400353313,1767419432093,-207.4,0.00022366,2]
[400353314,1767419432103,-215.0738,0.00022366,2]
[400353315,1767419432114,-223.0315306,0.00022366,2]
[400353316,1767419432124,-231.28369723,0.00022366,2]
[400353317,1767419432135,-239.84119403,0.00022366,2]
[400353318,1767419432146,-248.71531821,0.00022366,2]
[400353319,1767419432157,-257.91778498,0.00022366,2]
[400353320,1767419432167,-267.46074303,0.00022366,2]
[400353321,1767419432178,-277.35679052,0.00022366,2]
[400353322,1767419432189,-911.58,0.00022377,2]
[400353324,1767419432199,-1222.54,0.00022465,2]
[400353326,1767419432210,-1222.54,0.00022739,2]
[400353328,1767419432220,-1222.54,0.00023013,2]
[400353330,1767419432230,-911.58,0.00023076,2]
[400353332,1767419432241,-1222.54,0.00023287,2]
[400353333,1767419432251,-1222.54,0.00023561,2]
[400353336,1767419432262,-594.54808378,0.00023732,2]
[400353338,1767419432272,-298.41793724,0.00023735,2]
[400353340,1767419432282,-911.58,0.00023776,2]
[400353342,1767419432291,-420.0,0.00023817,2]
[400353344,1767419432307,-1222.54,0.00023835,2]
[400353346,1767419432317,-1680.0,0.00023928,2]
[400353348,1767419432327,-7801.78,0.00024055,2]
[400353350,1767419432338,-1222.54,0.00024109,2]
[400353352,1767419432348,-1222.54,0.00024383,2]
[400353354,1767419432358,-911.58,0.00024475,2]
[400353357,1767419432369,-1222.54,0.00024657,2]
[400353359,1767419432379,-163.86,0.00024658,2]
[400353362,1767419432389,-1222.65702069,0.00024931,2]
[400353365,1767419432399,-911.58,0.00025174,2]
[400353367,1767419432408,-1000.0,0.0002553,2]
[400353370,1767419432418,-911.58,0.00025874,2]
[400353373,1767419432428,-587.0,0.00025884,2]
[400353376,1767419432439,-200.0,0.00025902,2]
[400353379,1767419432448,-202.6984928,0.0002612,2]
[400353382,1767419432458,-2351.0,0.00026126,2]
[400353384,1767419432468,-1735.7541317,0.00026547,2]
[400353387,1767419432478,-911.58,0.00026573,2]
[400353390,1767419432488,-2420.0,0.000267,3]
[400353392,1767419432498,-300.0,0.00026784,2]
[400353395,1767419432508,-6230.11,0.00026789,2]
[400353397,1767419432518,-236.43841749,0.00027,7]
[400353399,1767419432528,-300.0,0.00027019,2]
[400353401,1767419432538,-506.85863405,0.00027055,2]
[400353403,1767419432549,-23.19080798,0.00027055,2]
[400353404,1767419432559,-200.0,0.00027055,2]
[400353405,1767419432569,-422.50817868,0.00027097,2]
[400353406,1767419432579,-340.88082751,0.00027097,2]
[400353407,1767419432590,-150.0,0.00027123,4]
[400353408,1767419432600,-193.59951911,0.00027123,4]
[400353409,1767419432610,-252.21239896,0.00027123,2]
[400353410,1767419432621,-274.32775227,0.00027123,4]
[400353411,1767419432634,-209.91190666,0.00027123,4]
[400353412,1767419432645,-208.93630464,0.00027123,4]
[400353413,1767419432656,-150.0,0.00027123,4]
[400353415,1767419432671,-11509.30014416,0.00027161,2]
[400353418,1767419432686,-251.65252675,0.00027161,2]
[400353420,1767419432699,-291.65158265,0.00027161,2]
[400353422,1767419432713,-305.36999736,0.00027161,2]
[400353454,1767419437954,-150.0,0.00027123,4]
[400353455,1767419437964,-2157.50574908,0.00027161,2]
[400353456,1767419437974,-150.0,0.0002726,4]
[400353457,1767419437983,-249.62704522,0.0002726,4]
[400353458,1767419437993,-170.55413539,0.0002726,4]
[400353459,1767419438003,-1437.19992958,0.00027266,2]
[400353460,1767419438020,-1604.17075609,0.00027266,2]
[400353461,1767419438030,-150.0,0.00027321,2]
[400353462,1767419438041,-200.0,0.00027326,2]
[400353463,1767419438051,-1000.0,0.00027345,2]
[400353464,1767419438060,-154.6,0.00027346,2]
[400353465,1767419438071,-221.96269266,0.00027397,4]
[400353466,1767419438081,-200.62631421,0.00027397,4]
[400353467,1767419438091,-151.0,0.00027397,2]
[400353468,1767419438102,-330.05,0.00027397,30]
[400353469,1767419438112,-500.0,0.00027397,20]
[400353470,1767419438122,-249.22,0.00027397,2]
[400353471,1767419438132,-2127.12626296,0.000274,5]
[400353472,1767419438145,-450.58499,0.000274,5]
[400353473,1767419438158,-2952.28874704,0.000274,5]
[400353474,1767419438169,-916.34316846,0.000275,2]
[400353475,1767419438181,-1083.65683154,0.000275,2]
[400353476,1767419438192,-150.0,0.00027526,2]
[400353477,1767419438202,-166.66,0.0002755,2]
[400353478,1767419438212,-1164.45533855,0.00027596,2]
[400353479,1767419438222,-200.0,0.00027599,2]
[400353480,1767419438232,-52.0122352,0.00027611,2]
[400353481,1767419438244,-820.6577648,0.00027611,2]
[400353482,1767419438254,-215.82,0.00027672,2]
[400353498,1767419438499,-200.0,0.00027875,2]
[400353500,1767419438528,-1000.0,0.00027945,2]
[400353501,1767419438539,-438.24412922,0.00028,60]
[400353502,1767419438552,-2377.7130118,0.00028,60]
[400353503,1767419438569,-441.81823743,0.00028,60]
[400353504,1767419438581,-2273.05774565,0.00028,60]
[400353505,1767419438596,-483.05057557,0.00028,60]
[400353506,1767419438609,-1733.86308309,0.00028,60]
[400353508,1767419438625,-2638.15312271,0.00028,60]
[400353510,1767419438639,-372.07179283,0.00028,60]
[400353514,1767419440093,-301.92197159,0.00028,60]
[400353515,1767419440417,-871.01006801,0.00028,60]
[400353516,1767419440427,-430.0,0.0002813,2]
[400353517,1767419440438,-200.0,0.00028154,2]
[400353518,1767419440448,-12.61280751,0.00028402,2]
[400353521,1767419444455,-3.13649943,0.00028402,2]
[400353522,1767419444480,-4867.0,0.00028402,2]
[400353523,1767419444493,-1938.0774899,0.00028402,2]
[400353524,1767419444506,-1491.625,0.00028402,2]
[400353525,1767419444517,-1772.16665824,0.00028402,2]
[400353526,1767419445973,-390.38154492,0.00028402,2]
[400353527,1767419445983,-166.66,0.0002846,2]
[400353528,1767419445993,-2724.01036048,0.00028526,2]
[400353529,1767419446084,-567.98963952,0.00028526,2]
[400353530,1767419446094,-151.0,0.00028766,2]
[400353531,1767419446103,-180.97910958,0.00028841,2]
[400353532,1767419446113,-1075.35948325,0.00028909,2]
[400353533,1767419446122,-1000.0,0.00028955,2]
[400353534,1767419446132,-132.57176765,0.00029009,2]
[400353713,1767420085416,3355.0,0.00032877,120]
[400353720,1767420242128,177.95,0.00027535,120]
[400353733,1767420493250,-370.0,0.00023879,2]
[400353734,1767420493273,-151.0,0.00023921,2]
[400353735,1767420493297,-151.0,0.00023921,2]
[400353736,1767420493320,-151.0,0.00023986,2]
[400353737,1767420493344,-151.0,0.00023986,2]
[400353740,1767420503253,-250.0,0.00026267,2]
[400353741,1767420503278,-1192.75,0.00027383,2]
[400353742,1767420503303,-1000.0,0.00027397,2]
[400353743,1767420503327,-198.03710231,0.000274,2]
[400353744,1767420503353,-184.31380404,0.000274,54]
[400353745,1767420503378,-1200.0,0.00027499,2]
[400353746,1767420503402,-2000.0,0.000275,2]
[400353747,1767420503426,-1000.0,0.000275,2]
[400353748,1767420503452,-166.66,0.00027605,30]
[400353749,1767420503477,-184.31380404,0.00027924,55]
[400353750,1767420503500,-33545.9207,0.00027924,2]
[400353751,1767420503526,-500.0,0.00028006,2]
[400353752,1767420503553,-500.0,0.00028006,2]
[400353753,1767420503584,-188.48005478,0.00028006,2]
[400353754,1767420503613,-500.0,0.00028006,2]
[400353755,1767420503638,-500.0,0.00028006,2]
[400353756,1767420503665,-500.0,0.00028006,2]
[400353757,1767420503689,-500.0,0.00028006,2]
[400353758,1767420503713,-500.0,0.00028006,2]
[400353759,1767420503741,-500.0,0.00028006,2]
[400353760,1767420503767,-500.0,0.00028006,2]
[400353761,1767420503793,-500.0,0.00028006,2]
[400353762,1767420503821,-500.0,0.00028006,2]
[400353763,1767420503848,-500.0,0.00028006,2]
[400353764,1767420503877,-500.0,0.00028006,2]
[400353765,1767420503903,-500.0,0.00028006,2]
[400353766,1767420503934,-500.0,0.00028006,2]
[400353767,1767420503964,-500.0,0.00028006,2]
[400353768,1767420503995,-500.0,0.00028006,2]
[400353769,1767420504023,-500.0,0.00028006,2]
[400353770,1767420504053,-500.0,0.00028006,2]
[400353771,1767420504086,-311.33977332,0.00028006,2]
[400353772,1767420504114,-500.0,0.00028006,2]
[400353773,1767420504139,-12754.39,0.00028007,10]
[400353774,1767420504161,-150.99,0.00028007,2]
[400353775,1767420504183,-9999.99,0.00028007,2]
[400353776,1767420504206,-1210.2,0.00028007,2]
[400353777,1767420504228,-1307.49,0.00028007,2]
[400353778,1767420504251,-8511.4,0.00028007,2]
[400353779,1767420504274,-3812.4,0.00028007,2]
[400353780,1767420504298,-5606.77,0.00028007,2]
[400353781,1767420504321,-14119.14,0.00028007,2]
[400353782,1767420504344,-610.77721531,0.00028007,2]
[400353800,1767420632074,-151.0,0.00023674,2]
[400353801,1767420632099,-151.0,0.00023674,2]
[400353802,1767420632110,-111.8620027,0.00023679,2]
[400353803,1767420632413,-39.1379973,0.00023679,2]
[400353807,1767420632653,-151.0,0.00023679,2]
[400353808,1767420632669,-151.0,0.00023757,2]
[400353809,1767420632679,-151.0,0.00023757,2]
[400353810,1767420632689,-368.0,0.00023757,2]
[400353811,1767420632700,-151.0,0.00023811,2]
[400353812,1767420632709,-151.0,0.00023811,2]
[400353813,1767420632719,-184.21306347,0.00026346,2]
[400353814,1767420632729,-2653.7371426,0.00027918,2]
[400353815,1767420632739,-1200.0,0.00027923,2]
[400353816,1767420632749,-1372.16804031,0.00027924,2]
[400353817,1767420632758,-33545.9207,0.00027924,2]
[400353818,1767420632768,-1865.97278469,0.00028007,2]
[400353819,1767420632777,-150.99,0.00028007,2]
[400353820,1767420632787,-1271.61,0.00028007,2]
[400353821,1767420632796,-4491.15,0.00028007,2]
[400353822,1767420632806,-999.99,0.00028007,2]
[400353823,1767420632816,-3077.88,0.00028007,2]
[400353824,1767420632826,-151.0,0.00028007,2]
[400353825,1767420632836,-409.8311172,0.00028023,2]
[400353826,1767420632847,-500.0,0.00028023,2]
[400353827,1767420632856,-256.81553037,0.00028023,2]
[400353828,1767420632866,-1280.62234173,0.00028024,3]
[400353829,1767420632877,-781.6676193,0.00028024,2]
[400353830,1767420632887,-168668.6695983,0.00028024,2]
[400353831,1767420632897,-4090.809896,0.00028024,2]
[400353832,1767420632907,-166.66,0.00028186,30]
[400353833,1767420632917,-1394.13,0.00028189,2]
[400353834,1767420632927,-469.01,0.00028189,2]
[400353835,1767420632936,-500.0,0.00028309,3]
[400353836,1767420632946,-1000.0,0.00028425,2]
[400353837,1767420632956,-911.13,0.00028463,2]
[400353838,1767420632966,-1852.42,0.0002848,2]
[400353839,1767420632976,-200.0,0.0002848,2]
[400353840,1767420632986,-166.66,0.00028767,30]
[400353841,1767420632995,-500.0,0.0002899,2]
[400353842,1767420633005,-500.0,0.0002899,2]
[400353843,1767420633015,-500.0,0.0002899,2]
[400353844,1767420633030,-500.49602922,0.0002899,2]
[400353845,1767420633040,-500.0,0.0002899,2]
[400353846,1767420633054,-500.0,0.0002899,2]
[400353847,1767420633064,-500.0,0.0002899,2]
[400353848,1767420633074,-500.0,0.0002899,2]
[400353849,1767420633084,-500.0,0.0002899,2]
[400353850,1767420633094,-500.0,0.0002899,2]
[400353851,1767420633104,-500.0,0.0002899,2]
[400353852,1767420633114,-500.0,0.0002899,2]
[400353853,1767420633129,-500.0,0.0002899,2]
[400353854,1767420633139,-500.0,0.0002899,2]
[400353855,1767420633149,-500.0,0.0002899,2]
[400353856,1767420633159,-500.0,0.0002899,2]
[400353857,1767420633168,-500.0,0.0002899,2]
[400353858,1767420633177,-186.59265123,0.0002899,2]
[400353859,1767420633187,-200.0,0.00029009,2]
[400353860,1767420633197,-320.1,0.00029016,2]
[400353861,1767420633207,-5000.0,0.00029058,2]
[400353862,1767420633216,-154.6,0.00029299,2]
[400353863,1767420633226,-200.0,0.00029299,2]
[400353864,1767420633235,-166.66,0.00029349,30]
[400353865,1767420633245,-166.66,0.00029369,2]
[400353866,1767420633254,-151.0,0.00029376,2]
[400353867,1767420633264,-1000.0,0.00029452,2]
[400353868,1767420633274,-200.0,0.00029592,2]
[400353869,1767420633284,-1372.16804029,0.00029598,2]
[400353870,1767420633293,-3422.67076258,0.00029794,3]
[400353871,1767420633307,-826.21128341,0.00029794,3]
[400353872,1767420633318,-651.02931078,0.00029794,3]
[400353873,1767420633330,-3421.91587551,0.00029794,3]
[400353874,1767420633340,-360.51220046,0.00029803,2]
[400353875,1767420633350,-505.0,0.00029877,2]
[400353876,1767420633360,-173.27708348,0.00029889,2]
[400353877,1767420633369,-9762.0413088,0.0002989,2]
[400353878,1767420633380,-310.2158656,0.0002989,2]
[400353879,1767420633397,-1067.84831878,0.0002989,2]
[400353880,1767420633407,-166.66,0.0002993,30]
[400353881,1767420633416,-16643.6544646,0.0002997,3]
[400353882,1767420633428,-2917.04639505,0.0002998,3]
[400353883,1767420633444,-2952.94751725,0.0002998,3]
[400353884,1767420633455,-1618.14212,0.0002998,3]
[400353885,1767420633467,-684.90508682,0.0002998,3]
[400354072,1767420640392,-440.76,0.00028781,2]
[400354074,1767420640402,-161.0,0.00029055,2]
[400354076,1767420640412,-25114.26780998,0.0002998,3]
[400354078,1767420640423,-236.36327285,0.0002999,2]
[400354080,1767420640432,-58252.790626,0.0002999,3]
[400354083,1767420640442,-508.60874789,0.00029999,2]
[400354085,1767420640455,-500.0,0.00029999,30]
[400354087,1767420640464,-50324.53626247,0.0003,5]
[400354089,1767420640476,-941.35,0.0003,5]
[400354199,1767420643919,-374.09274648,0.0003,5]
[400354200,1767420643972,-500.0,0.0003,5]
[400354201,1767420643984,-4069.35546928,0.0003,5]
[400354215,1767420646181,-4588.94614042,0.0003,5]
[400354216,1767420646239,-310.546,0.0003,5]
[400354217,1767420646354,-581.45672485,0.0003,5]
[400354218,1767420646370,-8731.87115927,0.0003,5]
[400354219,1767420646412,-1962.998755,0.0003,5]
[400354220,1767420647115,-3.08e-05,0.0003,5]
[400354221,1767420697642,1169.01968597,0.0003,120]
[400354236,1767420829192,160.71,0.000328,120]
[400354238,1767420890676,1000.0,0.00027055,120]
[400354239,1767420912712,286.0,0.0003,120]
[400354262,1767421081805,500.0,0.00028023,120]
[400354263,1767421082042,500.0,0.00029999,120]
[400354300,1767421272215,409.73,0.00013699,2]
[400354338,1767421534505,515.32073646,0.00030599,120]
[400354339,1767421570931,385.97454992,0.00017999,2]
[400354340,1767421573234,989.19047101,0.00017999,2]
[400354342,1767421599604,-313.0233095,0.00017999,2]
[400354343,1767421602275,-7.1792029,0.00017999,2]